Cogmind - Beta 9.6 @@@ ROGUE MODE // 2020.06.04 @ 11:34:42 Player: RNGesus Result: Destroyed by G-34 Mercenary with Small Laser Performance ------------- Evolutions (0) 0 Regions Visited (1) 200 Robots Destroyed (13) 65 Value Destroyed (204) 204 Prototype IDs (0) 0 Alien Tech Used (0) 0 Bonus (0) 0 TOTAL SCORE: 469 Bonus ------- None Cogmind --------- Core Integrity 0/250 Matter 279/300 Energy 100/100 System Corruption 0% Temperature Cool (7) Movement Rolling (100) Location -10/Materials Parts ------- > --- POWER (1) -------- (None) > --- PROPULSION (2) --- Compact Wheel > --- UTILITY (2) ------ Medium Storage Unit > --- WEAPON (2) ------- Light Assault Rifle > --- INVENTORY (8) ---- Ion Engine High-capacity Storage Unit Peak State ------------ > --- POWER ------------ Ion Engine > --- PROPULSION ------- Aluminum Leg Aluminum Leg > --- UTILITY ---------- Small Storage Unit High-capacity Storage Unit > --- WEAPON ----------- EM Pulse Gun Assault Rifle > --- INVENTORY -------- Ion Engine Compact Wheel Medium Laser [Rating: 7] Favorites ----------- Power Ion Engine Engine Ion Engine Propulsion Aluminum Leg Leg Aluminum Leg Wheel Compact Wheel Utility Small Storage Unit Storage Small Storage Unit Weapon Assault Rifle Energy Gun EM Pulse Gun Ballistic Gun Assault Rifle Build | -11 -10 ------- Run | Scr Mat Slots Evolved . | . . Power . | . . Propulsion . | . . Utility . | . . Weapon . | . . Parts Attached 12 | 6 6 Power 1 | 1 . Engine 1 | 1 . Core . | . . Reactor . | . . Propulsion 3 | 2 1 Treads . | . . Leg 2 | 2 . Wheel 1 | . 1 Hover . | . . Flight . | . . Utility 3 | 1 2 Device . | . . Storage 3 | 1 2 Processor . | . . Hackware . | . . Protection . | . . Artifact . | . . Weapon 5 | 2 3 Energy Gun 2 | 1 1 Energy Cannon . | . . Ballistic Gun 3 | 1 2 Ballistic Cannon . | . . Launcher . | . . Special Weapon . | . . Impact Weapon . | . . Slashing Weapon . | . . Piercing Weapon . | . . Special Melee Weapon . | . . Unidentified Prototypes . | . . Parts Lost 7 | . 7 Power 1 | . 1 Propulsion 2 | . 2 Utility . | . . Weapon 4 | . 4 Highest Loss Streak 3 | . 3 Average Slot Usage (%) 88 | . 88 Engine 11 | . 11 Leg 25 | . 25 Storage 22 | . 22 Energy Gun 11 | . 11 Ballistic Gun 15 | . 15 Naked Turns . | . . Heaviest Build 49 | 13 49 Greatest Support 20 | 20 20 Greatest Overweight (x) 2 | 2 2 Average Overweight (x) 1 | . 1 Largest Inventory Capacity 16 | 6 16 Average Capacity 11 | 5 11 Most Carried 4 | 3 4 Average Carried 2 | 2 2 Final Capacity 8 | 6 8 Final Carried 3 | 3 2 Class Distribution -------------------- 100% | Mutant Dominant Class ---------------- Mutant | -10/Materials Resources | -11 -10 ----------- Run | Scr Mat Matter Collected 387 | 206 181 Remotely . | . . Salvage Created 376 | . 376 Parts 29 | . 29 Haulers Intercepted 1 | . 1 Recyclers Shooed 1 | . 1 Parts Field Recycled . | . . Retrieved Matter . | . . Parts Self-Destructed . | . . Prevented . | . . Kills | -11 -10 ------- Run | Scr Mat Combat Hostiles Destroyed 9 | . 9 Guns 8 | . 8 AOE 1 | . 1 Classes Destroyed 6 | . 6 Builder 1 | . 1 Hauler 1 | . 1 Recycler 1 | . 1 Watcher 1 | . 1 Swarmer 6 | . 6 Grunt 3 | . 3 Best Kill Streak 4 | . 4 Combat Bots Only 4 | . 4 Max Kills in Single Turn 2 | . 2 Gunslinging . | . . Exploded 1 | . 1 Melee . | . . Uniques/NPCs Destroyed . | . . Combat | -11 -10 -------- Run | Scr Mat Damage Taken 864 | . 864 Core 255 | . 255 Absorbed by Shields . | . . Core Remaining (%) 100 | 100 . Volleys Fired 37 | . 37 Largest 2 | . 2 Hottest 70 | . 70 Shots Fired 67 | . 67 Gun 67 | . 67 Cannon . | . . Launcher . | . . Special . | . . Kinetic 47 | . 47 Thermal 2 | . 2 Explosive . | . . Electromagnetic 18 | . 18 Robot Hit Streak 12 | . 12 Robot Miss Streak 3 | . 3 Penetration Max . | . . Secondary Targets 1 | . 1 Max Gunslinging Chain 1 | . 1 Shots Hit Robots 46 | . 46 Core Hits 19 | . 19 Critical Hits . | . . Critical Kills . | . . Critical Parts Destroyed . | . . Melee Attacks . | . . Impact . | . . Slashing . | . . Piercing . | . . Sneak Attacks . | . . Combat Hostiles . | . . Follow-up Attacks . | . . Damage Inflicted 565 | . 565 Guns 478 | . 478 Cannons . | . . Explosions 87 | . 87 Melee . | . . Ramming . | . . Kinetic 322 | . 322 Thermal 100 | . 100 Explosive . | . . Electromagnetic 143 | . 143 Impact . | . . Slashing . | . . Piercing . | . . Highest Corruption . | . . Average Corruption . | . . Corruption Purged . | . . Overload Shots . | . . Overflow Damage . | . . Projectiles . | . . Explosions . | . . Melee . | . . Knockbacks . | . . Impact . | . . Kinetic . | . . Secondary . | . . Self-Inflicted Damage 28 | . 28 Shots 2 | . 2 Rammed . | . . Targets Rammed . | . . Kicked . | . . Crushed . | . . Highest Temperature 24 | . 24 Average Temperature 10 | . 10 Received Heat Transfer 243 | . 243 Siege Activations . | . . Robots Corrupted . | . . Combat Hostiles . | . . Parts Fried . | . . Impact Corruptions . | . . Robots Melted . | . . Combat Hostiles . | . . Parts Melted . | . . Heat Transferred 187 | . 187 Parts Sabotaged . | . . Parts Stolen . | . . Parts Stripped . | . . Power Chain Reactions 2 | . 2 Missiles Intercepted . | . . Alert | -11 -10 ------- Run | Scr Mat Peak Influence 169 | . 169 Average Influence 55 | . 62 Maximum Alert Level . | . . Low Security (%) 100 | 100 100 Level 1 . | . . Level 2 . | . . Level 3 . | . . Level 4 . | . . Level 5 . | . . High Security . | . . Max Security . | . . Squads Dispatched 1 | . 1 Investigation 1 | . 1 Extermination . | . . Reinforcement . | . . Assault . | . . Garrison . | . . Intercept . | . . Construction Impeded . | . . Haulers Reinforced . | . . Stealth | -11 -10 --------- Run | Scr Mat Distress Signals . | . . Communications Jammed . | . . Distress Signals . | . . Times Spotted 18 | . 18 Peak Tracking Total 9 | . 9 Tactical Retreats . | . . Traps | -11 -10 ------- Run | Scr Mat Traps Triggered . | . . Indirectly . | . . Trap Hack Attempts . | . . Triggered . | . . Disarmed . | . . Reprogrammed . | . . Reused . | . . Traps Extracted . | . . Installed . | . . Triggered . | . . Machines | -11 -10 ---------- Run | Scr Mat Machines Disabled . | . . Max in Single Turn . | . . Machines Sabotaged . | . . Garrisons Compromised . | . . Overloaded Fab Kills . | . . Fab Network Shutdowns . | . . Hacking | -11 -10 --------- Run | Scr Mat Machines Accessed 1 | . 1 Terminals . | . . Fabricators . | . . Repair Stations . | . . Recycling Units 1 | . 1 Scanalyzers . | . . Garrison Access . | . . Total Hacks 1 | . 1 Successful 1 | . 1 Failed . | . . Catastrophic . | . . Database Lockouts . | . . Manual 1 | . 1 Terminals . | . . Fabricators . | . . Repair Stations . | . . Recycling Units 1 | . 1 Scanalyzers . | . . Garrison Access . | . . Terminal Hacks . | . . Fabricator Hacks . | . . Repair Station Hacks . | . . Recycling Unit Hacks . | . . Scanalyzer . | . . Garrison Access Hacks . | . . Unauthorized Hacks 1 | . 1 Terminals . | . . Fabricators . | . . Repair Stations . | . . Recycling Units 1 | . 1 Tunnel 1 | . 1 Scanalyzers . | . . Garrison Access . | . . Data Cores Recovered . | . . Used . | . . Hacking Detections . | . . Full Trace Events . | . . Feedback Events . | . . Feedback Blocked . | . . Robot Schematics Acquired . | . . Robots Built . | . . Matter . | . . Time . | . . Total Robot Build Rating . | . . Part Schematics Acquired . | . . Parts Built . | . . Matter . | . . Time . | . . Total Part Build Rating . | . . Parts Repaired . | . . Time . | . . Parts Recycled . | . . Recycled Matter . | . . Retrieved Matter . | . . Retrieved Components . | . . Parts Scanalyzed . | . . Part Schematics Acquired . | . . Parts Damaged . | . . Bothacking | -11 -10 ------------ Run | Scr Mat Used RIF Installer . | . . Robots Hacked . | . . Non-combat . | . . Combat . | . . Robot Hacks Applied . | . . Relay Couplers Released . | . . Robots Rewired . | . . Allies Hacked . | . . Hacks Repelled . | . . Allies | -11 -10 -------- Run | Scr Mat Total Allies . | . . Largest Group . | . . Highest-Rated Group . | . . Highest-Rated Ally . | . . Total Orders . | . . Ally Attacks . | . . Total Damage . | . . Kills . | . . Allies Corrupted . | . . Allies Melted . | . . Intel | -11 -10 ------- Run | Scr Mat Robot Analysis Total . | . . Derelict Logs Recovered . | . . Drone Launches . | . . Drone Recoveries . | . . Exploration | -11 -10 ------------- Run | Scr Mat Turns Passed 531 | 59 472 Spaces Moved 267 | 41 226 Core 8 | 8 . Treads . | . . Legs 254 | 33 221 Wheels 5 | . 5 Hover . | . . Flight . | . . Fastest Speed 50 | 50 100 Average Speed 151 | 115 158 Slowest Speed 180 | 150 180 Overloaded Moves . | . . Propulsion Burnouts . | . . Robots Hopped . | . . Cave-ins Triggered . | . . Exploration Rate (%) 30 | 4 56 Regions Visited 1 Branch Regions . Pre-discovered Areas 1 | . 1 Known Exits Taken . | . . Unknown Exits Taken 1 | 1 . Scrap Searched . | . . Spaces Dug . | . . Terrain Destroyed 5 | . 5 Melee . | . . Projectile . | . . AOE 5 | . 5 Actions | -11 -10 --------- Run | Scr Mat Total 324 | 49 275 Wait 4 | . 4 Move 266 | 40 226 Hop . | . . Pick Up 3 | 3 . Fast Attach 9 | 6 3 Attach 2 | . 2 Detach 1 | . 1 Swap 1 | . 1 Drop 1 | . 1 Fire 37 | . 37 Melee . | . . Ram . | . . Kick . | . . Crush . | . . Escape Stasis . | . . Rewire . | . . Trap . | . . Miscellaneous . | . . Route ------- -11/Scrapyard -10/Materials (discovered 3 exits: [*Mat] / [*Min x2]) History --------- Turn | Location | Event 21 | -11/Scrapyard | Discovered new exit (range 16) 60 | -11/Scrapyard | Entered Materials 90 | -10/Materials | Discovered new exit (range 7) 134 | -10/Materials | Discovered new exit (range 10) 235 | -10/Materials | Discovered new exit (range 11) 309 | -10/Materials | Build established: Mutant 459 | -10/Materials | Core integrity fell below 50% 491 | -10/Materials | Lost 3 parts (1p1n1w) 510 | -10/Materials | Core integrity fell below 20% 532 | -10/Materials | Destroyed by G-34 Mercenary with Small Laser Last Messages --------------- 00437_ U-05 Engineer lays Concrete. 00438_ U-05 Engineer builds a Wall. 00444_ Ion Engine destroyed. 00445_ U-05 Engineer lays Concrete. 00452_ Med. Laser destroyed. 00460_ Aluminum Leg destroyed. 00478_ S-10 Pest destroyed. 00483_ Acquired 14 matter. 00484_ S-10 Pest destroyed. 00485_ Acquired 3 matter. 00489_ Acquired Lgt. Assault Rifle. 00500_ Aluminum Leg destroyed. 00501_ G-47 Trooper destroyed. 00501_ Switching to secondary target: G-34 Mercenary. 00502_ Acquired 25 matter. 00505_ Acquired 4 matter. 00511_ Acquired 9 matter. 00511_ Lgt. Assault Rifle destroyed. 00514_ Acquired Lgt. Assault Rifle. 00529_ Assault Rifle destroyed. Map ----- +----------------------------------------------------+ | | | | | | | | | | | | | | | | | | | | | | | | | | | | | | | | | | | | | | | ???????????????????????????????? | | ???????????????????????????????? | | ???????????????????????????????? | | ???????????????????????????????? | | ???????????????????????????????? | | ?????########??????????????????? | | ?????# @ g !#?????? ???????????? | | ?????#g"""g #?+####+###????????? | | ?????# "R #? ?????????? | | ?????# """ # #??????????? | | ?????# =[ # #??????????? | | ??#??# %%= # #??#???????? | | ??# ##+##### ###T#??##### | | ??# [=* | | ??# % ?? | | ??# # ? | | ?#! !# """" """" """" | | ?#! !# """" """" """" | | ?##!!!!## """" """" """" | | ??####### | | ??????#"" | | ??????#"T """" """" """" "" | | ??????#"" """" """" """" "" | | ??????### """" """" """" "" | | ????????# | | ????????# | | ????????### ##"T"###"T" | | ??????????# #### ##"""#?#""" | | ??????????# #??# ######?#### | | ??????????# #??# #?????????? | | ???????????+???# #?????????? | +----------------------------------------------------+ Best States ------------- Heat Dissipation 25 Energy Generation 10 Energy Capacity 250 Matter Stores 300 Matter Capacity 300 Sight Range 16 Terrain Scan Density 10 Evasion (%) 40 Item Schematics ----------------- None Robot Schematics ------------------ None Fabricated ------------ Nothing Alien Tech Used ----------------- None Achievements -------------- None Challenges ------------ None Game ------ Seed FlightMyomerStripper Manual? 0 Play Time 00:05:06 Cumulative 235.9 hours Start 2020.06.04 @ 11:32:00 End 2020.06.04 @ 11:34:42 Sessions 1 Manual Loads 0 Difficulty Rogue Special Mode None Game No. 384 Rogue 384 Adventurer 0 Explorer 0 Win Type - Total 5 Types 3/0/1/1/0/0/0 Lore% 79 Gallery% 80 Achievement% 60 Wizard Run 0 Options --------- ASCII 0 Keyboard 1 Movement Numpad Keybinds 0 Fullscreen 1 Font 18/X11Bold Map View 76x50 Tactical HUD 1 Map Filters NONE Filters NONE Steam 1 RUN: 9b94deb3-0e29-45d3-8dcd-957870733b5c